[Event "FIDE WCCC Girls-10 2024"]
[Site "Montesilvano"]
[Date "2024.11.19"]
[Round "5.1"]
[White "Berikkyzy Alanna"]
[Black "Yang, Aimee"]
[Result "1-0"]
[ECO "B11"]
[WhiteElo "2043"]
[BlackElo "1864"]
[Annotator "RC"]
[PlyCount "131"]
[EventDate "2024.11.18"]
[EventType "swiss"]
[EventCountry "ITA"]
[SourceTitle "playchess.com"]
[Source "ChessBase"]
[SourceQuality "1"]
[TimeControl "5400+30"]

1. e4 {[%emt 0:00:11]} c6 {[%emt 0:00:09]} 2. Nc3 {[%emt 0:00:36]} d5 {[%emt 0:00:09]} 3. Nf3 {[%emt 0:00:29]} Bg4 {[%emt 0:00:13]} 4. d4 {[%emt 0:00:47]} Nf6 {[%emt 0:00:42]} 5. e5 {[%emt 0:00:41]} Nfd7 {[%emt 0:01:52]} 6. Be2 {[%emt 0:01:05]} e6 {[%emt 0:00:20]} 7. Ng5 {[%emt 0:01:14]} Bxe2 {[%emt 0:01:02]} 8. Nxe2 {[%emt 0:00:33]} h6 {[%emt 0:00:45]} 9. Nh3 {[%emt 0:01:17]} c5 {[%emt 0:00:19]} 10. c3 {[%emt 0:00:44]} Nc6 {[%emt 0:00:31]} 11. O-O {[%emt 0:01:06]} Be7 {[%emt 0:01:18]} 12. f4 {[%emt 0:01:03]} f5 {[%emt 0:04:54]} 13. exf6 {[%emt 0:02:51]} Nxf6 {[%emt 0:02:54]} 14. f5 {[%emt 0:01:46]} exf5 {[%emt 0:01:35]} 15. Nhf4 {[%emt 0:04:37]} Kf7 {[%emt 0:10:08]} 16. Ng3 {[%emt 0:01:29]} Qd7 {[%emt 0:03:50]} 17. Qd3 {[%emt 0:05:51]} cxd4 {[%emt 0:13:55]} 18. Nxf5 {[%emt 0:06:35]} Ne5 {[%emt 0:03:12]} 19. Qh3 {[%emt 0:04:07]} dxc3 {[%emt 0:01:35]} 20. Nh5 {[%emt 0:04:05]} Neg4 {[%emt 0:08:06]} 21. Nxe7 {[%emt 0:04:29]} Kxe7 {[%emt 0:01:03]} 22. bxc3 {[%emt 0:05:35]} Nxh5 {[%emt 0:03:24]} 23. Qxh5 {[%emt 0:00:20]} Nf6 {[%emt 0:00:18]} 24. Qg6 {[%emt 0:05:24]} Rag8 {[%emt 0:02:48]} 25. Be3 {[%emt 0:02:50]} Qe8 {[%emt 0:02:48]} 26. Qd3 {[%emt 0:01:52]} Qc6 {[%emt 0:01:57]} 27. Bxa7 {[%emt 0:03:27]} Rf8 {[%emt 0:05:11]} 28. Bd4 {[%emt 0:01:08]} Kd7 {[%emt 0:03:02]} 29. a4 {[%emt 0:01:00]} Qa6 {[%emt 0:04:19]} 30. Qg3 {[%emt 0:02:20]} Rhg8 {[%emt 0:00:48]} 31. Rab1 {[%emt 0:00:18]} Kc8 {[%emt 0:02:55]} 32. Rb5 {[%emt 0:04:20]} Nd7 {[%emt 0:03:07]} 33. Rfb1 {[%emt 0:00:30]} Rf7 {[%emt 0:03:03]} 34. Rxb7 {[%emt 0:04:28]} Rf1+ {[%emt 0:01:11]} 35. Rxf1 {[%emt 0:00:07]} Qxb7 {[%emt 0:00:14]} 36. Qd6 {[%emt 0:00:34]} g6 {[%emt 0:02:40]} 37. a5 {[%emt 0:00:17]} Qc7 {[%emt 0:01:53]} 38. Qxd5 {[%emt 0:00:11]} Rd8 {[%emt 0:00:09]} 39. Qb5 {[%emt 0:01:03]} Qb7 {[%emt 0:00:16]} 40. Qc4+ {[%emt 0:01:44]} Qc7 {[%emt 0:00:19]} 41. Qa6+ {[%emt 0:00:07]} Qb7 {[%emt 0:00:14]} 42. Qxg6 {[%emt 0:00:08]} Nb8 {[%emt 0:00:48]} 43. Bb6 {[%emt 0:01:31]} Rh8 {[%emt 0:00:21]} 44. Qe6+ {[%emt 0:01:57]} Qd7 {[%emt 0:00:21]} 45. Qxd7+ {[%emt 0:00:59]} Nxd7 {[%emt 0:00:08]} 46. Bd4 {[%emt 0:00:03]} Kc7 {[%emt 0:00:13]} 47. Bxh8 {[%emt 0:00:07]} Kb7 {[%emt 0:00:08]} 48. Rf7 {[%emt 0:00:07]} Kc6 {[%emt 0:00:09]} 49. a6 {[%emt 0:00:04]} Kb6 {[%emt 0:00:07]} 50. Rxd7 {[%emt 0:00:04]} Kxa6 {[%emt 0:00:06]} 51. g4 {[%emt 0:00:08]} Kb5 {[%emt 0:00:07]} 52. h4 {[%emt 0:00:04]} Kc6 {[%emt 0:00:05]} 53. Rd1 {[%emt 0:00:05]} Kc5 {[%emt 0:00:06]} 54. g5 {[%emt 0:00:02]} hxg5 {[%emt 0:00:05]} 55. hxg5 {[%emt 0:00:02]} Kc6 {[%emt 0:00:12]} 56. g6 {[%emt 0:00:02]} Kc7 {[%emt 0:00:06]} 57. g7 {[%emt 0:00:04]} Kc6 {[%emt 0:00:06]} 58. g8=Q {[%emt 0:00:06]} Kb5 {[%emt 0:00:07]} 59. Qd5+ {[%emt 0:00:08]} Ka4 {[%emt 0:00:11]} 60. c4 {[%emt 0:00:30]} Ka3 {[%emt 0:00:12]} 61. c5 {[%emt 0:00:27]} Ka4 {[%emt 0:00:06]} 62. c6 {[%emt 0:00:10]} Ka3 {[%emt 0:00:04]} 63. c7 {[%emt 0:00:05]} Ka4 {[%emt 0:00:14]} 64. c8=Q {[%emt 0:00:17]} Ka3 {[%emt 0:00:09]} 65. Ra1+ {[%emt 0:00:09]} Kb4 {[%emt 0:00:08]} 66. Bc3# {[%emt 0:00:04]} 1-0

[Event "FIDE WCCC Girls-10 2024"]
[Site "Montesilvano"]
[Date "2024.11.19"]
[Round "5.2"]
[White "Nandinjiguur, Chinzorig"]
[Black "Anistoroaei, Maria"]
[Result "1/2-1/2"]
[ECO "D52"]
[WhiteElo "1807"]
[BlackElo "1715"]
[Annotator "NA RC"]
[PlyCount "192"]
[EventDate "2024.11.18"]
[EventType "swiss"]
[EventCountry "ITA"]
[SourceTitle "playchess.com"]
[Source "ChessBase"]
[SourceQuality "1"]
[TimeControl "5400+30"]

1. d4 {[%emt 0:00:02]} d5 {[%emt 0:00:08]} 2. c4 {[%emt 0:00:27]} e6 {[%emt 0:00:07]} 3. Nc3 {[%emt 0:00:32]} Nf6 {[%emt 0:00:17]} 4. Bg5 {[%emt 0:00:42]} Nbd7 {[%emt 0:00:09]} 5. Nf3 {[%emt 0:02:16]} c6 {[%emt 0:00:09]} 6. e3 {[%emt 0:04:07]} Qa5 {[%emt 0:01:41]} 7. Nd2 {[%emt 1:25:54]} Bb4 {[%emt 0:01:06]} 8. Qc2 {[%emt 0:00:00]} O-O {[%emt 0:01:03] 8...0-0 was played by the boomers.} 9. Be2 {[%emt 0:00:00]} Re8 {[%emt 0:06:13]} 10. O-O {[%emt 0:00:00]} dxc4 {[%emt 0:03:00] D52: Queen's Gambit Declined: Cambridge Springs Variation.} 11. Bf4 {[%emt 0:00:00]} b5 $146 {[%emt 0:02:35]} ({Predecessor:} 11... Qd8 12. Nxc4 Nb6 13. Ne5 Nbd5 14. Bg3 Nxc3 15. bxc3 Be7 16. Rab1 Nd7 17. Nc4 b5 18. Nd6 Bxd6 19. Bxd6 {1-0 Jovanovic,A (2227)-Pribanovic,M (1877) Paracin-ch 2014 (6)}) 12. a4 {[%emt 0:00:00]} Qb6 {[%emt 0:07:13]} 13. b3 {[%emt 0:00:00]} cxb3 {[%emt 0:05:00]} 14. Qxb3 {[%emt 0:00:00]} Bxc3 {[%emt 0:00:47]} 15. Qxc3 {[%emt 0:00:00]} Nd5 {[%emt 0:03:28]} 16. Qb2 {[%emt 0:00:00]} Nxf4 {[%emt 0:01:49]} 17. exf4 {[%emt 0:00:00]} bxa4 {[%emt 0:00:46]} 18. Qc3 {[%emt 0:00:00]} c5 {[%emt 0:07:36]} 19. Rxa4 {[%emt 0:00:00]} cxd4 {[%emt 0:02:40]} 20. Rxd4 {[%emt 0:00:00]} e5 {[%emt 0:03:21]} 21. Rb4 {[%emt 0:00:00]} Qf6 {[%emt 0:02:19]} 22. Ne4 {[%emt 0:00:00]} Qe7 {[%emt 0:09:07]} 23. Bf3 {[%emt 0:00:00]} Ba6 {[%emt 0:05:06]} 24. Ra1 {[%emt 0:00:00]} Rab8 {[%emt 0:08:16]} 25. Rxb8 {[%emt 0:00:00]} Rxb8 {[%emt 0:05:07]} 26. h3 {[%emt 0:00:00]} Bb7 {[%emt 0:02:34]} 27. Rxa7 {[%emt 0:00:00]} Bxe4 {[%emt 0:04:29]} 28. Bxe4 {[%emt 0:00:00]} exf4 {[%emt 0:03:02]} 29. Bf5 {[%emt 0:00:00]} Qc5 {[%emt 0:06:48]} 30. Bxh7+ {[%emt 0:00:00]} Kxh7 {[%emt 0:02:09]} 31. Qd3+ {[%emt 0:00:00]} Kh8 {[%emt 0:01:39]} 32. Rxd7 {[%emt 0:00:00]} Qe5 {[%emt 0:04:06]} 33. Rxf7 {[%emt 0:03:13]} Qe1+ {[%emt 0:01:38]} 34. Kh2 {[%emt 0:10:17]} Qxf2 {[%emt 0:00:54]} 35. Qg6 {[%emt 0:00:00]} Qg3+ {[%emt 0:01:03]} 36. Qxg3 {[%emt 0:00:00]} fxg3+ {[%emt 0:00:07]} 37. Kxg3 {[%emt 0:00:00]} Kh7 {[%emt 0:00:10]} 38. Kg4 {[%emt 0:00:00]} Kg6 {[%emt 0:00:20]} 39. Rf4 {[%emt 0:00:00]} Rb5 {[%emt 0:00:33]} 40. h4 {[%emt 0:00:00]} Kh6 {[%emt 0:00:18]} 41. Rc4 {[%emt 0:00:00]} Rb8 {[%emt 0:00:49]} 42. Rc6+ {[%emt 0:00:00]} g6 {[%emt 0:00:19]} 43. Kh3 {[%emt 0:00:00]} Ra8 {[%emt 0:00:49]} 44. Rc3 {[%emt 0:00:00]} Rb8 {[%emt 0:00:53]} 45. g4 {[%emt 0:00:00]} Rg8 {[%emt 0:00:39]} 46. g5+ {[%emt 0:00:00]} Kh7 {[%emt 0:00:33]} 47. Rc7+ {[%emt 0:00:00]} Kh8 {[%emt 0:00:22]} 48. Rc6 {[%emt 0:00:00]} Kg7 {[%emt 0:00:37]} 49. Kg4 {[%emt 0:00:00]} Rb8 {[%emt 0:00:19]} 50. Rc7+ {[%emt 0:00:53]} Kg8 {[%emt 0:00:12]} 51. Rc4 {[%emt 0:00:09]} Rb1 {[%emt 0:00:30]} 52. Kf4 {[%emt 0:01:03]} Rb5 {[%emt 0:00:25]} 53. Ra4 {[%emt 0:01:11]} Kf7 {[%emt 0:00:33]} 54. Ke4 {[%emt 0:00:54]} Kg7 {[%emt 0:00:14]} 55. Rd4 {[%emt 0:00:31]} Kf7 {[%emt 0:00:30]} 56. Ke3 {[%emt 0:00:32]} Ke6 {[%emt 0:00:31]} 57. Kf4 {[%emt 0:00:41]} Rc5 {[%emt 0:00:22]} 58. Re4+ {[%emt 0:00:30]} Kf7 {[%emt 0:00:11]} 59. Ra4 {[%emt 0:00:13]} Rb5 {[%emt 0:00:27]} 60. Ke4 {[%emt 0:00:23]} Kg7 {[%emt 0:00:17]} 61. Ra7+ {[%emt 0:00:24]} Kg8 {[%emt 0:00:13]} 62. Rd7 {[%emt 0:00:09]} Kh8 {[%emt 0:00:44]} 63. Rd5 {[%emt 0:00:38]} Rb7 {[%emt 0:01:26]} 64. Ke5 {[%emt 0:00:47]} Rf7 {[%emt 0:00:30]} 65. Ke6 {[%emt 0:01:24]} Rf4 {[%emt 0:00:31]} 66. Rd8+ {[%emt 0:00:34]} Kg7 {[%emt 0:00:23]} 67. Rd7+ {[%emt 0:00:32]} Kg8 {[%emt 0:00:19]} 68. Rb7 {[%emt 0:01:25]} Kf8 {[%emt 0:00:38]} 69. Rb3 {[%emt 0:01:25]} Kg7 {[%emt 0:01:00]} 70. Rb7+ {[%emt 0:00:11]} Kg8 {[%emt 0:00:13]} 71. Rd7 {[%emt 0:00:56]} Kf8 {[%emt 0:00:22]} 72. Ke5 {[%emt 0:00:24]} Rf1 {[%emt 0:00:56]} 73. Rd6 {[%emt 0:00:27]} Kg7 {[%emt 0:00:11]} 74. Rd4 {[%emt 0:00:37]} Rf5+ {[%emt 0:00:51]} 75. Ke4 {[%emt 0:01:09]} Rf1 {[%emt 0:00:32]} 76. Rd7+ {[%emt 0:00:19]} Kg8 {[%emt 0:00:15]} 77. Ke5 {[%emt 0:00:34]} Rf2 {[%emt 0:00:17]} 78. Rb7 {[%emt 0:00:32]} Rf3 {[%emt 0:00:15]} 79. Rb6 {[%emt 0:00:39]} Kg7 {[%emt 0:00:11]} 80. Rb4 {[%emt 0:00:23]} Rf5+ {[%emt 0:00:26]} 81. Ke4 {[%emt 0:00:20]} Rf1 {[%emt 0:00:20]} 82. Ke5 {[%emt 0:00:43]} Rf5+ {[%emt 0:00:09]} 83. Ke6 {[%emt 0:00:05]} Rf2 {[%emt 0:00:26]} 84. Rb7+ {[%emt 0:00:39]} Kg8 {[%emt 0:00:09]} 85. Re7 {[%emt 0:00:37]} Rf4 {[%emt 0:00:22]} 86. Re8+ {[%emt 0:01:02]} Kg7 {[%emt 0:00:09]} 87. Re7+ {[%emt 0:00:12]} Kg8 {[%emt 0:00:07]} 88. Ke5 {[%emt 0:00:42]} Rf1 {[%emt 0:00:15]} 89. Rd7 {[%emt 0:00:27]} Rf2 {[%emt 0:00:11]} 90. Rd4 {[%emt 0:00:07]} Rf5+ {[%emt 0:00:08]} 91. Ke4 {[%emt 0:00:28]} Rf1 {[%emt 0:00:30]} 92. Rd3 {[%emt 0:00:38]} Kg7 {[%emt 0:00:26]} 93. Rf3 {[%emt 0:00:09]} Re1+ {[%emt 0:00:18]} 94. Kf4 {[%emt 0:00:07]} Re7 {[%emt 0:00:20]} 95. Kg4 {[%emt 0:00:20]} Re4+ {[%emt 0:00:22]} 96. Kg3 $11 {[%emt 0:00:45]} Re7 {[%emt 0:01:38]} 1/2-1/2

[Event "FIDE WCCC Girls-10 2024"]
[Site "Montesilvano"]
[Date "2024.11.19"]
[Round "5.3"]
[White "Peng, Jingyi(Gd)"]
[Black "Jaksa, Ema"]
[Result "1/2-1/2"]
[ECO "D11"]
[WhiteElo "1720"]
[BlackElo "1635"]
[Annotator "NA RC"]
[PlyCount "58"]
[EventDate "2024.11.18"]
[EventType "swiss"]
[EventCountry "ITA"]
[SourceTitle "playchess.com"]
[Source "ChessBase"]
[SourceQuality "1"]
[TimeControl "5400+30"]

1. Nf3 {[%emt 0:00:03]} d5 {[%emt 0:00:23]} 2. g3 {[%emt 0:00:06]} Bf5 {[%emt 0:00:58]} 3. Bg2 {[%emt 0:00:11]} e6 {[%emt 0:00:50]} 4. O-O {[%emt 0:01:04]} Nf6 {[%emt 0:00:24]} 5. c4 {[%emt 0:03:08]} c6 {[%emt 0:03:22]} 6. Qb3 {[%emt 0:00:25]} Qb6 {[%emt 0:06:05]} 7. d4 {[%emt 0:02:13]} Nbd7 {[%emt 0:07:19]} 8. Nc3 {[%emt 0:03:40]} Be7 {[%emt 0:05:17]} 9. Qxb6 {[%emt 0:11:30]} axb6 {[%emt 0:08:27]} 10. b3 {[%emt 1:13:10]} h6 {[%emt 0:04:11]} 11. h3 {[%emt 0:00:00]} O-O {[%emt 0:02:46]} 12. g4 {[%emt 0:00:00]} Bh7 {[%emt 0:02:40]} 13. Bf4 {[%emt 0:00:00]} Ne4 {[%emt 0:02:09]} 14. Nxe4 {[%emt 0:00:00]} Bxe4 {[%emt 0:00:16]} 15. Ne5 {[%emt 0:00:00]} Bxg2 {[%emt 0:01:47]} 16. Kxg2 {[%emt 0:00:00]} Nxe5 {[%emt 0:04:31]} 17. Bxe5 {[%emt 0:00:00]} Ra6 {[%emt 0:03:34]} 18. cxd5 {[%emt 0:00:00]} exd5 {[%emt 0:00:10]} 19. a4 {[%emt 0:00:00]} Rfa8 {[%emt 0:00:58]} 20. Rac1 {[%emt 0:00:00]} Ra5 {[%emt 0:03:44]} 21. Bc7 {[%emt 0:00:00]} Bd8 {[%emt 0:00:25]} 22. Bd6 {[%emt 0:00:00]} Bf6 {[%emt 0:05:18]} 23. e3 {[%emt 0:00:00]} Re8 {[%emt 0:01:16]} 24. Rfe1 {[%emt 0:00:00]} Be7 {[%emt 0:01:12]} 25. Bc7 {[%emt 0:00:00]} Bd8 {[%emt 0:00:08]} 26. Bd6 {[%emt 0:00:00]} Be7 {[%emt 0:00:18]} 27. Bc7 {[%emt 0:00:00]} Bd8 {[%emt 0:00:11]} 28. Bd6 {[%emt 0:00:00]} Be7 {[%emt 0:00:18]} 29. Bc7 {[%emt 0:00:00]} Bd8 {[%emt 0:00:10]} 1/2-1/2

[Event "FIDE WCCC Girls-10 2024"]
[Site "Montesilvano"]
[Date "2024.11.19"]
[Round "5.4"]
[White "Artemenko, Isabella"]
[Black "Cetin, Beren"]
[Result "0-1"]
[ECO "B24"]
[WhiteElo "1637"]
[BlackElo "1658"]
[Annotator "NA RC"]
[PlyCount "124"]
[EventDate "2024.11.18"]
[EventType "swiss"]
[EventCountry "ITA"]
[SourceTitle "playchess.com"]
[Source "ChessBase"]
[SourceQuality "1"]
[TimeControl "5400+30"]

1. e4 {[%emt 0:00:01]} c5 {[%emt 0:00:09]} 2. Nc3 {[%emt 0:00:06]} Nc6 {[%emt 0:00:16]} 3. g3 {[%emt 0:00:06]} e6 {[%emt 0:00:07]} 4. Bg2 {[%emt 0:00:08]} Nf6 {[%emt 0:00:23]} 5. d3 {[%emt 0:00:09]} Be7 {[%emt 0:00:07]} 6. f4 {[%emt 0:00:07]} d5 {[%emt 0:00:07]} 7. e5 {[%emt 0:00:39]} Nd7 {[%emt 0:00:59]} 8. Nf3 {[%emt 0:00:48]} b5 {[%emt 0:01:46]} 9. O-O {[%emt 0:03:58]} b4 {[%emt 0:00:49]} 10. Ne2 {[%emt 0:00:26]} O-O {[%emt 0:01:56]} 11. Be3 {[%emt 0:06:38]} a5 {[%emt 0:03:55]} 12. c3 {[%emt 0:13:14]} Bb7 {[%emt 0:04:59]} 13. d4 {[%emt 0:02:03]} c4 {[%emt 0:00:30]} 14. h3 {[%emt 0:03:22]} a4 {[%emt 0:08:14]} 15. Nd2 {[%emt 0:13:33]} a3 {[%emt 0:03:33]} 16. b3 {[%emt 0:07:55]} bxc3 {[%emt 0:03:53]} 17. Nxc3 {[%emt 0:00:05]} Bb4 {[%emt 0:03:43]} 18. Qc2 {[%emt 0:00:13]} Qa5 {[%emt 0:02:18]} 19. Rfc1 {[%emt 0:01:03]} cxb3 {[%emt 0:25:01]} 20. Nxb3 {[%emt 0:00:05]} Qd8 {[%emt 0:02:57]} 21. Qf2 {[%emt 0:12:16]} f6 {[%emt 0:01:32]} 22. Nxd5 {[%emt 0:01:47]} exd5 {[%emt 0:01:52]} 23. Bxd5+ {[%emt 0:00:05]} Kh8 {[%emt 0:00:09]} 24. Bxc6 {[%emt 0:00:07]} Bxc6 {[%emt 0:00:09]} 25. Rxc6 {[%emt 0:00:05]} fxe5 {[%emt 0:00:49]} 26. Qc2 {[%emt 0:05:00]} exf4 {[%emt 0:15:36]} 27. Bxf4 {[%emt 0:00:12]} Nf6 {[%emt 0:01:19]} 28. Be5 {[%emt 0:03:16]} Rc8 {[%emt 0:05:19]} 29. Rc1 {[%emt 0:05:21]} Rxc6 {[%emt 0:04:14]} 30. Qxc6 {[%emt 0:00:04]} Nd7 {[%emt 0:02:22]} 31. Bd6 {[%emt 0:09:06]} Bxd6 {[%emt 0:01:14]} 32. Qxd6 {[%emt 0:00:10]} Qg5 {[%emt 0:02:51]} 33. Re1 {[%emt 0:10:39]} Qf5 {[%emt 0:01:53]} 34. Qf4 {[%emt 0:01:27]} Qxh3 {[%emt 0:01:23]} 35. Qh4 {[%emt 0:00:30]} Qf5 {[%emt 0:00:17]} 36. Qh2 {[%emt 0:00:42]} Nf6 {[%emt 0:00:32]} 37. Qg2 {[%emt 0:02:20]} Qd3 {[%emt 0:00:49]} 38. Rf1 {[%emt 0:01:01]} Re8 {[%emt 0:00:16]} 39. Rf3 {[%emt 0:00:32]} Re1+ {[%emt 0:00:35]} 40. Kh2 {[%emt 0:00:34]} Qg6 {[%emt 0:00:38]} 41. Rf1 {[%emt 0:00:33]} Qh6+ {[%emt 0:00:28]} 42. Kg1 {[%emt 0:00:10]} Re8 {[%emt 0:00:47]} 43. Qf2 {[%emt 0:00:53]} Qh5 {[%emt 0:00:10]} 44. Qh2 {[%emt 0:00:11]} Qg5 {[%emt 0:00:23]} 45. Qf2 {[%emt 0:00:07]} Qg4 {[%emt 0:00:34]} 46. Qf3 {[%emt 0:00:38]} Qg5 {[%emt 0:00:25]} 47. Qf4 {[%emt 0:00:34]} Qg6 {[%emt 0:00:12]} 48. Qf2 {[%emt 0:00:36]} h6 {[%emt 0:01:10]} 49. Qg2 {[%emt 0:00:44]} Ne4 {[%emt 0:00:33]} 50. Kh2 {[%emt 0:00:29]} Ng5 {[%emt 0:00:26]} 51. Rf2 {[%emt 0:00:39]} Qh5+ {[%emt 0:00:06]} 52. Kg1 {[%emt 0:00:10]} Nh3+ {[%emt 0:00:04]} 53. Kh2 {[%emt 0:00:52]} Nf4+ {[%emt 0:00:08]} 54. Kg1 {[%emt 0:00:08]} Nxg2 {[%emt 0:00:14]} 55. Kxg2 {[%emt 0:00:05]} Re2 {[%emt 0:00:06]} 56. Rxe2 {[%emt 0:00:08]} Qxe2+ {[%emt 0:00:05]} 57. Kh3 {[%emt 0:00:06]} Qxa2 {[%emt 0:00:06]} 58. Nc5 {[%emt 0:00:09]} Qd5 {[%emt 0:00:06]} 59. Kh2 {[%emt 0:00:38]} a2 {[%emt 0:00:04]} 60. Kh3 {[%emt 0:00:20]} a1=Q {[%emt 0:00:15]} 61. Kg4 {[%emt 0:00:16]} Qaxd4+ {[%emt 0:00:07]} 62. Kh3 {[%emt 0:01:15]} Qh1# {[%emt 0:00:03]} 0-1

[Event "FIDE WCCC Girls-10 2024"]
[Site "Montesilvano"]
[Date "2024.11.19"]
[Round "5.5"]
[White "Samhita Pungavanam"]
[Black "Sholpanbek, Zhansaya"]
[Result "0-1"]
[ECO "C47"]
[WhiteElo "1752"]
[BlackElo "1657"]
[Annotator "NA RC"]
[PlyCount "70"]
[EventDate "2024.11.18"]
[EventType "swiss"]
[EventCountry "ITA"]
[SourceTitle "playchess.com"]
[Source "ChessBase"]
[SourceQuality "1"]
[TimeControl "5400+30"]

1. e4 {[%emt 0:00:16]} e5 {[%emt 0:00:22]} 2. Nf3 {[%emt 0:00:52]} Nc6 {[%emt 0:00:26]} 3. Nc3 {[%emt 0:00:54]} Nf6 {[%emt 0:00:22]} 4. d4 {[%emt 0:01:00]} exd4 {[%emt 0:00:22]} 5. Nxd4 {[%emt 0:00:46]} Bb4 {[%emt 0:00:26]} 6. Nxc6 {[%emt 1:29:42]} bxc6 {[%emt 0:00:33]} 7. Bd3 {[%emt 0:00:00]} d5 {[%emt 0:00:45]} 8. exd5 {[%emt 0:00:00]} cxd5 {[%emt 0:00:19]} 9. O-O {[%emt 0:00:00]} O-O {[%emt 0:00:32]} 10. Qf3 {[%emt 0:00:00]} Rb8 {[%emt 0:10:48]} 11. Bg5 {[%emt 0:00:00]} c6 {[%emt 0:11:29]} 12. h3 {[%emt 0:00:00]} Bd6 {[%emt 0:03:37]} 13. Rab1 {[%emt 0:00:00]} h6 {[%emt 0:09:15]} 14. Bh4 {[%emt 0:00:00]} Re8 {[%emt 0:03:28]} 15. b3 {[%emt 0:00:00]} g5 {[%emt 0:06:48]} 16. Bg3 {[%emt 0:00:00]} g4 {[%emt 0:02:29]} 17. Qd1 {[%emt 0:00:00]} gxh3 {[%emt 0:03:52]} 18. Qd2 {[%emt 0:00:00]} Kg7 {[%emt 0:03:50]} 19. Ne2 {[%emt 0:00:00]} c5 {[%emt 0:12:14]} 20. Nf4 {[%emt 0:00:00]} hxg2 {[%emt 0:01:23]} 21. Nxg2 {[%emt 0:00:00]} Bxg3 {[%emt 0:04:38]} 22. fxg3 {[%emt 0:00:00]} Qd6 {[%emt 0:02:54]} 23. Nf4 {[%emt 0:00:00]} Bb7 {[%emt 0:02:50]} 24. Qf2 {[%emt 0:00:53]} Re7 {[%emt 0:00:46]} 25. Qh2 {[%emt 0:04:30]} Qb6 {[%emt 0:04:08]} 26. c4 {[%emt 0:00:31]} d4 {[%emt 0:00:58]} 27. Qh3 {[%emt 0:01:46]} Qc6 {[%emt 0:03:13]} 28. Rf2 {[%emt 0:01:59]} Bc8 {[%emt 0:05:44]} 29. Qh4 {[%emt 0:00:44]} Qd6 {[%emt 0:01:52]} 30. Rh2 {[%emt 0:00:32]} Ng4 {[%emt 0:00:50]} 31. Nh5+ {[%emt 0:00:28]} Kf8 {[%emt 0:00:09]} 32. Rg2 {[%emt 0:00:37]} Re3 {[%emt 0:00:54]} 33. Be2 {[%emt 0:00:46]} Qg6 {[%emt 0:00:55]} 34. Nf4 {[%emt 0:00:27]} Qxb1+ {[%emt 0:00:06]} 35. Bf1 {[%emt 0:00:36]} Bf5 {[%emt 0:01:21]} 0-1

[Event "FIDE WCCC Girls-10 2024"]
[Site "Montesilvano"]
[Date "2024.11.19"]
[Round "5.6"]
[White "Bayramova, Aya"]
[Black "Yunker, Alisa Genrietta"]
[Result "0-1"]
[ECO "D36"]
[WhiteElo "1634"]
[BlackElo "1872"]
[Annotator "NA RC"]
[PlyCount "86"]
[EventDate "2024.11.18"]
[EventType "swiss"]
[EventCountry "ITA"]
[SourceTitle "playchess.com"]
[Source "ChessBase"]
[SourceQuality "1"]
[TimeControl "5400+30"]

1. d4 {[%emt 0:00:08]} d5 {[%emt 0:00:00]} 2. Nf3 {[%emt 0:00:40]} e6 {[%emt 0:00:12]} 3. c4 {[%emt 0:00:07]} Nf6 {[%emt 0:00:06]} 4. Nc3 {[%emt 0:00:25]} Be7 {[%emt 0:00:07]} 5. Bg5 {[%emt 0:00:04]} O-O {[%emt 0:00:06]} 6. e3 {[%emt 0:00:18]} c6 {[%emt 0:00:13]} 7. Bxf6 {[%emt 0:01:58]} Bxf6 {[%emt 0:00:02]} 8. Qc2 {[%emt 0:00:10]} Re8 {[%emt 0:00:21]} 9. Bd3 {[%emt 0:00:40]} h6 {[%emt 0:01:09]} 10. cxd5 {[%emt 0:00:36]} exd5 {[%emt 0:00:06]} 11. O-O {[%emt 0:01:18]} Nd7 {[%emt 0:05:54]} 12. b4 {[%emt 0:01:11]} Nf8 {[%emt 0:11:03]} 13. b5 {[%emt 0:01:11]} Bd7 {[%emt 0:01:27]} 14. bxc6 {[%emt 0:00:30]} Bxc6 {[%emt 0:00:23]} 15. Bb5 {[%emt 0:00:40]} Rc8 {[%emt 0:14:37]} 16. Bxc6 {[%emt 0:00:46]} bxc6 {[%emt 0:00:12]} 17. Na4 {[%emt 0:00:41]} Ne6 {[%emt 0:00:22]} 18. Nc5 {[%emt 0:00:50]} Qe7 {[%emt 0:05:47]} 19. Rac1 {[%emt 0:01:26]} Nxc5 {[%emt 0:02:40]} 20. Qxc5 {[%emt 0:00:36]} Qxc5 {[%emt 0:00:29]} 21. Rxc5 {[%emt 0:00:08]} Be7 {[%emt 0:00:03]} 22. Ra5 {[%emt 0:03:23]} Rc7 {[%emt 0:00:48]} 23. Rc1 {[%emt 0:01:18]} Rec8 {[%emt 0:00:08]} 24. Kf1 {[%emt 0:01:42]} f6 {[%emt 0:00:10]} 25. Ke2 {[%emt 0:00:53]} Kf7 {[%emt 0:00:10]} 26. Kd3 {[%emt 0:00:08]} Ke6 {[%emt 0:00:07]} 27. Nd2 {[%emt 0:01:01]} Bb4 {[%emt 0:00:20]} 28. Ra6 {[%emt 0:00:09]} Kd7 {[%emt 0:00:28]} 29. Nb3 {[%emt 0:00:13]} Rb8 {[%emt 0:00:10]} 30. f3 {[%emt 0:07:54]} f5 {[%emt 0:00:57]} 31. h3 {[%emt 0:01:46]} Rb6 {[%emt 0:05:10]} 32. Rxb6 {[%emt 0:01:25]} axb6 {[%emt 0:00:09]} 33. e4 {[%emt 0:05:00]} fxe4+ {[%emt 0:00:25]} 34. fxe4 {[%emt 0:02:14]} dxe4+ {[%emt 0:00:00]} 35. Kxe4 {[%emt 0:00:02]} Kd6 {[%emt 0:00:01]} 36. Rf1 {[%emt 0:03:47]} Re7+ {[%emt 0:00:50]} 37. Kd3 {[%emt 0:00:08]} Kc7 {[%emt 0:00:14]} 38. Nc1 {[%emt 0:06:15]} Bd6 {[%emt 0:00:48]} 39. Ne2 {[%emt 0:00:35]} Rd7 {[%emt 0:00:54]} 40. g4 {[%emt 0:04:28]} c5 {[%emt 0:03:38]} 41. Kc4 {[%emt 0:01:50]} Kc6 {[%emt 0:02:37]} 42. d5+ {[%emt 0:00:53]} Kb7 {[%emt 0:04:16]} 43. Nf4 {[%emt 0:02:28]} Rf7 {[%emt 0:00:25]} 0-1